[Event "Hungary Olimpic Hopes 2022"]
[Site "Tapolca"]
[Date "2022.06.23"]
[Round "1.17"]
[White "Hangay, Oliver"]
[Black "Kardos, Levente"]
[Result "1-0"]
[ECO "C60"]
[WhiteElo "1627"]
[BlackElo "1691"]
[Annotator "NA RC"]
[PlyCount "121"]
[EventDate "2022.06.23"]
[EventType "swiss"]
[EventCountry "HUN"]
[SourceTitle "playchess.com"]
[Source "ChessBase"]
[SourceQuality "1"]
[TimeControl "5400+30"]

1. e4 {[%emt 0:30:16]} e5 {[%emt 0:30:13]} 2. Nf3 {[%emt 0:00:21]} Nc6 {[%emt 0:00:11]} 3. Bb5 Nge7 4. c3 {[%emt 0:02:53]} g6 {[%emt 0:02:23]} 5. O-O {[%emt 0:01:28]} Bg7 {[%emt 0:00:53]} 6. d4 {[%emt 0:01:09]} exd4 {[%emt 0:00:13]} 7. cxd4 {[%emt 0:00:08]} d5 {[%emt 0:00:00]} 8. e5 {[%emt 0:02:24]} O-O 9. Nc3 {[%emt 0:05:36]} Bg4 {[%emt 0:00:59]} 10. Be3 {[%emt 0:01:27]} a6 {[%emt 0:02:53]} 11. Be2 {[%emt 0:07:16]} Be6 {[%emt 0:01:33]} 12. Ng5 Nf5 {[%emt 0:00:14]} 13. Nxe6 {[%emt 0:01:39]} fxe6 {[%emt 0:03:47]} 14. Qd2 Nxe3 15. Qxe3 {[%emt 0:04:16]} Nb4 {[%emt 0:01:07]} 16. Qd2 {[%emt 0:01:10]} Qh4 {[%emt 0:00:48]} 17. g3 Qh3 {[%emt 0:00:00]} 18. Qg5 {[%emt 0:10:45]} Rae8 {[%emt 0:01:03]} 19. Bg4 {[%emt 0:01:28]} Qh6 {[%emt 0:01:23]} 20. Qxh6 {[%emt 0:00:24]} Bxh6 {[%emt 0:00:13]} 21. Rad1 {[%emt 0:02:11]} b6 {[%emt 0:01:12]} 22. a3 {[%emt 0:01:29]} Nc6 {[%emt 0:00:23]} 23. Kg2 Kg7 24. Rfe1 {[%emt 0:04:03]} Na5 {[%emt 0:02:10]} 25. Be2 {[%emt 0:02:29]} b5 {[%emt 0:00:26]} 26. a4 {[%emt 0:00:39]} c6 27. h4 {[%emt 0:02:45]} Kh8 {[%emt 0:01:29]} 28. f4 {[%emt 0:00:21]} Bg7 {[%emt 0:00:35]} 29. b4 Nb7 30. a5 {[%emt 0:02:17]} h5 {[%emt 0:00:41]} 31. Na2 {[%emt 0:00:44]} Rf7 {[%emt 0:01:17]} 32. Nc1 {[%emt 0:01:29]} Bh6 {[%emt 0:00:39]} 33. Nd3 Kh7 {[%emt 0:00:29]} 34. Rc1 {[%emt 0:00:56]} Rc7 {[%emt 0:00:22]} 35. Rc2 {[%emt 0:00:59]} Kg7 {[%emt 0:00:22]} 36. Nf2 Kh7 {[%emt 0:00:28]} 37. Nh3 {[%emt 0:01:02]} Bf8 {[%emt 0:00:02]} 38. Ng5+ {[%emt 0:00:48]} Kg7 39. Rb1 {[%emt 0:00:44]} Kg8 {[%emt 0:00:56]} 40. Bd3 {[%emt 0:00:20]} Bh6 {[%emt 0:01:41]} 41. Bxg6 {[%emt 0:00:24]} Ree7 {[%emt 0:00:42]} 42. Bxh5 Bxg5 43. fxg5 {[%emt 0:00:53]} Rh7 {[%emt 0:02:19]} 44. Bg4 {[%emt 0:00:13]} Nd8 {[%emt 0:00:23]} 45. Rf1 {[%emt 0:00:36]} Rhf7 {[%emt 0:00:28]} 46. Rf6 {[%emt 0:00:34]} Rxf6 {[%emt 0:00:34]} 47. gxf6 Kf8 {[%emt 0:01:24]} 48. Bh3 {[%emt 0:01:48]} Rh7 {[%emt 0:00:49]} 49. Bg4 {[%emt 0:00:50]} Rc7 {[%emt 0:00:36]} 50. h5 {[%emt 0:00:18]} Rh7 {[%emt 0:00:13]} 51. Bf3 Rc7 52. g4 {[%emt 0:01:38]} Nf7 {[%emt 0:01:30]} 53. Kg3 {[%emt 0:00:10]} Kg8 {[%emt 0:00:21]} 54. Kf4 {[%emt 0:00:28]} Kh7 {[%emt 0:00:01]} 55. g5 {[%emt 0:00:19]} Nh8 56. Bg4 {[%emt 0:00:46]} c5 {[%emt 0:01:28]} 57. dxc5 {[%emt 0:00:33]} Ng6+ {[%emt 0:01:03]} 58. hxg6+ Kg8 {[%emt 0:01:51]} 59. Bxe6+ {[%emt 0:00:47]} Kf8 {[%emt 0:00:50]} 60. g7+ {[%emt 0:00:00]} Rxg7 61. Rh2 1-0

[Event "Hungary Olimpic Hopes 2022"]
[Site "Tapolca"]
[Date "2022.06.23"]
[Round "1.18"]
[White "Kiralyhazi, Mate Ferenc"]
[Black "Papai, Mate"]
[Result "0-1"]
[ECO "B23"]
[WhiteElo "1042"]
[BlackElo "1406"]
[Annotator "NA RC"]
[PlyCount "78"]
[EventDate "2022.06.23"]
[EventType "swiss"]
[EventCountry "HUN"]
[SourceTitle "playchess.com"]
[Source "ChessBase"]
[SourceQuality "1"]
[TimeControl "5400+30"]

1. e4 {[%emt 0:40:06]} c5 {[%emt 0:30:05]} 2. Nc3 {[%emt 0:00:08]} e6 {[%emt 0:00:06]} 3. Bc4 {[%emt 0:00:17]} Nc6 {[%emt 0:00:10]} 4. Nf3 {[%emt 0:00:15]} Nge7 {[%emt 0:00:36]} 5. O-O {[%emt 0:00:30]} d5 {[%emt 0:00:08]} 6. exd5 {[%emt 0:00:06]} exd5 {[%emt 0:00:06]} 7. Be2 {[%emt 0:00:46]} g6 {[%emt 0:01:57]} 8. Re1 {[%emt 0:00:53]} Bg7 {[%emt 0:00:16]} 9. Bf1 {[%emt 0:00:32]} O-O {[%emt 0:00:36]} 10. g3 Nf5 {[%emt 0:04:26]} 11. Bg2 {[%emt 0:01:14]} Be6 {[%emt 0:02:33]} 12. d3 {[%emt 0:02:18]} Bxc3 {[%emt 0:01:34]} 13. bxc3 {[%emt 0:00:10]} Qd7 {[%emt 0:02:08]} 14. Ba3 {[%emt 0:01:08]} Rfc8 {[%emt 0:02:25]} 15. Bxc5 {[%emt 0:00:56]} Nd8 {[%emt 0:01:46]} 16. Ba3 {[%emt 0:00:30]} Rxc3 {[%emt 0:00:34]} 17. Bb2 {[%emt 0:00:17]} Rc7 {[%emt 0:01:54]} 18. Be5 {[%emt 0:00:44]} Rcc8 {[%emt 0:00:22]} 19. Bh3 Nc6 {[%emt 0:09:09]} 20. Bb2 {[%emt 0:03:14]} d4 {[%emt 0:03:46]} 21. Qc1 {[%emt 0:00:30]} Nb4 22. Re2 {[%emt 0:00:42]} Nxd3 {[%emt 0:03:32]} 23. Qb1 {[%emt 0:00:31]} Nxb2 {[%emt 0:00:24]} 24. Qxb2 {[%emt 0:00:05]} Rc3 {[%emt 0:04:36]} 25. Ne5 {[%emt 0:00:24]} Qc7 {[%emt 0:00:23]} 26. Rb1 {[%emt 0:02:58]} b6 27. Rd1 {[%emt 0:02:43]} Rd8 {[%emt 0:00:50]} 28. Rd3 Rd5 {[%emt 0:05:23]} 29. Nf3 {[%emt 0:01:49]} Ra5 {[%emt 0:01:00]} 30. Red2 {[%emt 0:03:48]} Rxa2 {[%emt 0:00:33]} 31. Qb5 Raxc2 {[%emt 0:04:19]} 32. Rxc3 {[%emt 0:00:50]} Qxc3 {[%emt 0:00:57]} 33. Rd3 {[%emt 0:00:13]} Qa1+ {[%emt 0:00:38]} 34. Bf1 Rc1 {[%emt 0:04:25]} 35. Rb3 {[%emt 0:02:41]} Rxf1+ {[%emt 0:00:28]} 36. Kg2 {[%emt 0:00:08]} Bxb3 {[%emt 0:01:59]} 37. Qe8+ {[%emt 0:00:04]} Kg7 {[%emt 0:00:11]} 38. Qe5+ {[%emt 0:00:03]} f6 {[%emt 0:00:07]} 39. Qc7+ {[%emt 0:00:10]} Bf7 {[%emt 0:00:05]} 0-1

[Event "Hungary Olimpic Hopes 2022"]
[Site "Tapolca"]
[Date "2022.06.23"]
[Round "1.19"]
[White "Illes-Nagy, Nora"]
[Black "Vasenszky, Kata Sara"]
[Result "1-0"]
[ECO "A40"]
[WhiteElo "1297"]
[BlackElo "1051"]
[Annotator "NA RC"]
[PlyCount "41"]
[EventDate "2022.06.23"]
[EventType "swiss"]
[EventCountry "HUN"]
[SourceTitle "playchess.com"]
[Source "ChessBase"]
[SourceQuality "1"]
[TimeControl "5400+30"]

1. d4 {[%emt 0:30:30]} c6 {[%emt 0:30:30]} 2. c4 {[%emt 0:00:30]} d5 3. Nc3 Bf5 {[%emt 0:01:00]} 4. cxd5 {[%emt 0:01:00]} cxd5 {[%emt 0:00:30]} 5. Qb3 Qd7 {[%emt 0:02:07]} 6. Qxd5 {[%emt 0:02:56]} Nc6 7. a3 {[%emt 0:02:51]} Qxd5 {[%emt 0:02:12]} 8. Nxd5 {[%emt 0:00:08]} O-O-O {[%emt 0:02:56]} 9. Nb4 Nxd4 10. Bd2 {[%emt 0:10:04]} Nb3 {[%emt 0:01:14]} 11. Rd1 a5 {[%emt 0:06:16]} 12. Nd3 {[%emt 0:02:27]} Nf6 {[%emt 0:09:33]} 13. f3 {[%emt 0:13:06]} b6 {[%emt 0:02:37]} 14. e4 {[%emt 0:04:25]} Be6 {[%emt 0:04:34]} 15. Nf4 {[%emt 0:03:12]} Bd7 {[%emt 0:01:49]} 16. Bc3 Ba4 17. Ba6+ {[%emt 0:01:10]} Kc7 {[%emt 0:02:49]} 18. Be5+ Rd6 {[%emt 0:01:14]} 19. Bxd6+ {[%emt 0:01:20]} exd6 20. Nd5+ {[%emt 0:00:22]} Nxd5 {[%emt 0:01:18]} 21. Rxd5 1-0

[Event "Hungary Olimpic Hopes 2022"]
[Site "Tapolca"]
[Date "2022.06.23"]
[Round "2.1"]
[White "Megyaszai, Balazs"]
[Black "Kolimar, Kristof Pal"]
[Result "0-1"]
[ECO "B42"]
[WhiteElo "1945"]
[BlackElo "2203"]
[Annotator "RC"]
[PlyCount "80"]
[EventDate "2022.06.23"]
[EventType "swiss"]
[EventCountry "HUN"]
[SourceTitle "playchess.com"]
[Source "ChessBase"]
[SourceQuality "1"]
[TimeControl "5400+30"]

1. e4 {[%emt 0:00:18]} c5 {[%emt 0:00:04]} 2. Nf3 {[%emt 0:00:07]} e6 {[%emt 0:00:03]} 3. d4 {[%emt 0:00:07]} cxd4 {[%emt 0:00:05]} 4. Nxd4 {[%emt 0:00:20]} a6 {[%emt 0:00:04]} 5. Bd3 {[%emt 0:00:20]} Qb6 {[%emt 0:00:33]} 6. Be3 {[%emt 0:00:01]} Qxb2 {[%emt 0:01:04]} 7. Nd2 {[%emt 0:00:02]} Qc3 {[%emt 0:00:09]} 8. O-O {[%emt 0:04:25]} Qc7 {[%emt 0:00:02]} 9. a4 {[%emt 0:09:10]} d6 {[%emt 0:03:01]} 10. Rb1 {[%emt 0:09:50]} Nf6 {[%emt 0:01:43]} 11. Qf3 {[%emt 0:08:14]} Be7 {[%emt 0:05:39]} 12. Qg3 e5 13. Ne2 {[%emt 0:08:29]} Be6 {[%emt 0:25:40]} 14. Rb2 Nbd7 {[%emt 0:31:31]} 15. Rfb1 {[%emt 0:24:41]} Rb8 16. Ba7 {[%emt 0:07:42]} O-O {[%emt 0:00:34]} 17. Bxb8 {[%emt 0:06:14]} Rxb8 {[%emt 0:00:01]} 18. Nb3 {[%emt 0:01:31]} d5 {[%emt 0:02:40]} 19. exd5 {[%emt 0:01:57]} Bxd5 {[%emt 0:00:14]} 20. Bf5 {[%emt 0:00:56]} Ba3 {[%emt 0:05:08]} 21. Ra2 {[%emt 0:01:11]} Bd6 {[%emt 0:00:01]} 22. Rab2 {[%emt 0:05:06]} e4 {[%emt 0:05:13]} 23. Qh3 {[%emt 0:00:38]} Nb6 {[%emt 0:01:52]} 24. Rd1 {[%emt 0:03:27]} Be5 {[%emt 0:04:03]} 25. Ra2 {[%emt 0:01:15]} a5 {[%emt 0:02:38]} 26. Qh4 Rd8 {[%emt 0:04:51]} 27. Re1 {[%emt 0:03:54]} g6 {[%emt 0:00:36]} 28. Bh3 {[%emt 0:01:23]} Bxh2+ {[%emt 0:00:15]} 29. Kh1 {[%emt 0:00:01]} Be5 {[%emt 0:00:10]} 30. Kg1 {[%emt 0:00:37]} Kg7 {[%emt 0:01:53]} 31. g3 h6 32. Bg2 {[%emt 0:00:31]} Nc4 {[%emt 0:03:00]} 33. Nf4 {[%emt 0:01:15]} Bc6 34. Ne2 Qb6 {[%emt 0:02:12]} 35. Rf1 {[%emt 0:02:11]} Nd6 {[%emt 0:00:44]} 36. Qh1 {[%emt 0:00:44]} Nf5 {[%emt 0:00:25]} 37. Qh3 {[%emt 0:00:00]} h5 {[%emt 0:00:00]} 38. Kh1 {[%emt 0:01:08]} Ng4 {[%emt 0:00:15]} 39. Kg1 {[%emt 0:00:45]} Rd1 40. Ra1 {[%emt 0:00:50]} Qxf2+ {[%emt 0:02:03]} 0-1

[Event "Hungary Olimpic Hopes 2022"]
[Site "Tapolca"]
[Date "2022.06.23"]
[Round "2.2"]
[White "Bodrogi, Bendeguz"]
[Black "Csontos, Aron"]
[Result "1-0"]
[ECO "A05"]
[WhiteElo "2198"]
[BlackElo "1934"]
[Annotator "NA RC"]
[PlyCount "157"]
[EventDate "2022.06.23"]
[EventType "swiss"]
[EventCountry "HUN"]
[SourceTitle "playchess.com"]
[Source "ChessBase"]
[SourceQuality "1"]
[TimeControl "5400+30"]

1. Nf3 {[%emt 0:00:05]} Nf6 {[%emt 0:00:05]} 2. g3 {[%emt 0:00:09]} d5 {[%emt 0:00:06]} 3. Bg2 {[%emt 0:00:06]} c5 {[%emt 0:00:34]} 4. c4 {[%emt 0:00:07]} d4 {[%emt 0:00:32]} 5. e3 {[%emt 0:00:35]} Nc6 {[%emt 0:01:18]} 6. exd4 {[%emt 0:00:07]} cxd4 {[%emt 0:03:06]} 7. d3 {[%emt 0:00:06]} e5 {[%emt 0:01:41]} 8. O-O {[%emt 0:01:39]} Bd6 {[%emt 0:01:11]} 9. Bg5 {[%emt 0:01:00]} h6 {[%emt 0:02:27]} 10. Bxf6 {[%emt 0:00:08]} Qxf6 {[%emt 0:00:15]} 11. a3 {[%emt 0:00:23]} a5 {[%emt 0:01:07]} 12. Re1 {[%emt 0:01:13]} O-O {[%emt 0:00:24]} 13. Nbd2 {[%emt 0:00:07]} Qd8 {[%emt 0:11:25]} 14. Qc2 Be6 {[%emt 0:05:01]} 15. c5 {[%emt 0:12:57]} Bc7 {[%emt 0:05:55]} 16. Nc4 {[%emt 0:10:11]} f6 {[%emt 0:06:30]} 17. b4 {[%emt 0:00:13]} axb4 18. axb4 {[%emt 0:00:06]} Nxb4 {[%emt 0:02:07]} 19. Qb3 Rxa1 {[%emt 0:01:56]} 20. Rxa1 {[%emt 0:00:49]} Na6 {[%emt 0:01:12]} 21. Qb5 {[%emt 0:14:14]} Bd5 22. Nfd2 {[%emt 0:04:35]} Bxg2 {[%emt 0:04:31]} 23. Kxg2 {[%emt 0:00:10]} Qd5+ {[%emt 0:00:08]} 24. Kg1 {[%emt 0:00:05]} Rd8 {[%emt 0:06:23]} 25. Nb3 {[%emt 0:03:47]} f5 26. Nb6 Bxb6 {[%emt 0:08:55]} 27. Qxb6 {[%emt 0:09:34]} Rc8 {[%emt 0:07:27]} 28. Rc1 {[%emt 0:10:34]} Nb8 29. Na5 Nd7 {[%emt 0:05:19]} 30. Qxb7 {[%emt 0:00:48]} Rxc5 {[%emt 0:00:41]} 31. Rxc5 Qxc5 {[%emt 0:00:09]} 32. Qxd7 {[%emt 0:00:12]} Qxa5 {[%emt 0:00:06]} 33. Qc8+ {[%emt 0:00:05]} Kf7 {[%emt 0:00:28]} 34. Qxf5+ {[%emt 0:00:05]} Ke7 {[%emt 0:02:04]} 35. h4 {[%emt 0:01:49]} Qc7 {[%emt 0:01:25]} 36. Kg2 {[%emt 0:03:50]} Qd6 {[%emt 0:01:45]} 37. g4 {[%emt 0:01:17]} g6 {[%emt 0:02:58]} 38. Qf3 {[%emt 0:04:51]} Ke6 39. h5 {[%emt 0:00:07]} gxh5 {[%emt 0:03:09]} 40. Qf5+ {[%emt 0:01:37]} Kd5 {[%emt 0:05:17]} 41. gxh5 {[%emt 0:06:25]} Kc5 42. f4 {[%emt 0:00:07]} Qd5+ {[%emt 0:02:12]} 43. Kg3 {[%emt 0:12:16]} Qg8+ 44. Qg6 {[%emt 0:00:19]} exf4+ {[%emt 0:03:10]} 45. Kxf4 {[%emt 0:01:41]} Qb8+ {[%emt 0:05:03]} 46. Kf5 {[%emt 0:01:21]} Qb1 {[%emt 0:01:22]} 47. Kf6 {[%emt 0:01:41]} Kb4 48. Ke5 Kc3 {[%emt 0:02:29]} 49. Qc6+ {[%emt 0:00:34]} Kd2 {[%emt 0:00:05]} 50. Qxh6+ {[%emt 0:00:04]} Ke2 {[%emt 0:00:17]} 51. Qg6 {[%emt 0:00:13]} Qb8+ {[%emt 0:00:54]} 52. Kxd4 {[%emt 0:00:07]} Qd8+ {[%emt 0:00:18]} 53. Ke5 Qa5+ {[%emt 0:00:39]} 54. Kf4 {[%emt 0:00:56]} Qc7+ {[%emt 0:00:19]} 55. Kg5 {[%emt 0:01:54]} Qg3+ 56. Kh6 {[%emt 0:00:40]} Qf4+ {[%emt 0:00:58]} 57. Kh7 Qc7+ {[%emt 0:01:03]} 58. Qg7 {[%emt 0:00:48]} Qc5 {[%emt 0:00:32]} 59. Qg6 {[%emt 0:01:57]} Qe7+ 60. Kg8 {[%emt 0:01:05]} Qd8+ {[%emt 0:00:49]} 61. Kf7 {[%emt 0:00:10]} Qd7+ {[%emt 0:00:23]} 62. Kf8 {[%emt 0:00:48]} Kd1 {[%emt 0:00:49]} 63. h6 Qd8+ {[%emt 0:00:40]} 64. Kg7 {[%emt 0:00:49]} Qe7+ {[%emt 0:00:37]} 65. Qf7 {[%emt 0:00:11]} Qg5+ {[%emt 0:00:33]} 66. Kh7 Qg3 {[%emt 0:00:32]} 67. Qf5 {[%emt 0:00:48]} Qd6 68. Kg7 Qe7+ {[%emt 0:01:20]} 69. Kg6 {[%emt 0:01:21]} Qe8+ {[%emt 0:00:12]} 70. Kg5 {[%emt 0:00:16]} Qe3+ 71. Kh5 {[%emt 0:00:03]} Qe8+ {[%emt 0:01:01]} 72. Kg4 Qg8+ 73. Kh3 {[%emt 0:01:31]} Qe8 {[%emt 0:01:26]} 74. h7 Qe3+ {[%emt 0:00:17]} 75. Kg2 {[%emt 0:01:24]} Qh6 {[%emt 0:00:19]} 76. Qe4 {[%emt 0:00:18]} Qg5+ {[%emt 0:00:36]} 77. Kf2 Qg7 {[%emt 0:00:24]} 78. Qh1+ {[%emt 0:00:34]} Kd2 {[%emt 0:00:07]} 79. h8=Q 1-0

[Event "Hungary Olimpic Hopes 2022"]
[Site "Tapolca"]
[Date "2022.06.23"]
[Round "2.3"]
[White "Szakmary, Domonkos"]
[Black "Turcsanyi, Vince Gergo"]
[Result "0-1"]
[ECO "C55"]
[WhiteElo "1934"]
[BlackElo "2120"]
[Annotator "NA RC"]
[PlyCount "63"]
[EventDate "2022.06.23"]
[EventType "swiss"]
[EventCountry "HUN"]
[SourceTitle "playchess.com"]
[Source "ChessBase"]
[SourceQuality "1"]
[TimeControl "5400+30"]

1. e4 {[%emt 0:00:01]} e5 {[%emt 0:00:06]} 2. Nf3 {[%emt 0:00:04]} Nc6 {[%emt 0:00:10]} 3. Bc4 {[%emt 0:00:04]} Nf6 {[%emt 0:00:07]} 4. d3 {[%emt 0:00:04]} Be7 {[%emt 0:00:09]} 5. Nc3 {[%emt 0:00:31]} d6 {[%emt 0:01:43]} 6. a3 {[%emt 0:00:36]} O-O {[%emt 0:02:06]} 7. h3 {[%emt 0:03:22]} Kh8 {[%emt 0:05:23]} 8. Be3 Na5 {[%emt 0:14:07]} 9. Ba2 {[%emt 0:06:36]} c5 {[%emt 0:03:26]} 10. Nd5 {[%emt 0:16:22]} Nc6 {[%emt 0:00:30]} 11. c3 {[%emt 0:00:30]} Nxd5 {[%emt 0:00:30]} 12. Bxd5 {[%emt 0:04:34]} f5 {[%emt 0:24:45]} 13. Qe2 {[%emt 0:02:29]} f4 {[%emt 0:00:30]} 14. Bd2 {[%emt 0:00:30]} Qc7 {[%emt 0:11:25]} 15. b4 {[%emt 0:11:34]} Nd8 {[%emt 0:09:53]} 16. d4 cxd4 {[%emt 0:00:06]} 17. cxd4 {[%emt 0:01:25]} Bf6 {[%emt 0:00:09]} 18. Rc1 {[%emt 0:01:03]} Qe7 {[%emt 0:04:06]} 19. b5 {[%emt 0:16:48]} exd4 {[%emt 0:01:56]} 20. Bb4 {[%emt 0:03:21]} Re8 {[%emt 0:02:20]} 21. O-O {[%emt 0:01:43]} Be6 {[%emt 0:03:57]} 22. Qd2 {[%emt 0:12:10]} Qf7 {[%emt 0:00:14]} 23. Qxf4 {[%emt 0:00:06]} Bxd5 {[%emt 0:00:26]} 24. exd5 {[%emt 0:00:39]} Qxd5 25. Qxd6 {[%emt 0:00:04]} Qxd6 {[%emt 0:00:54]} 26. Bxd6 {[%emt 0:05:51]} Ne6 {[%emt 0:06:52]} 27. Be5 {[%emt 0:00:05]} Bxe5 {[%emt 0:00:30]} 28. Nxe5 {[%emt 0:03:19]} Nf4 {[%emt 0:00:00]} 29. Nf7+ {[%emt 0:00:30]} Kg8 {[%emt 0:02:58]} 30. Rc7 d3 {[%emt 0:00:30]} 31. Rd1 {[%emt 0:01:30]} Re2 {[%emt 0:03:29]} 32. Kf1 {[%emt 0:02:32]} 0-1

[Event "Hungary Olimpic Hopes 2022"]
[Site "Tapolca"]
[Date "2022.06.23"]
[Round "2.4"]
[White "Szegedy, Matyas"]
[Black "Szabo-Toth, Gabor"]
[Result "1/2-1/2"]
[ECO "C50"]
[WhiteElo "2046"]
[BlackElo "1903"]
[Annotator "NA RC"]
[PlyCount "72"]
[EventDate "2022.06.23"]
[EventType "swiss"]
[EventCountry "HUN"]
[SourceTitle "playchess.com"]
[Source "ChessBase"]
[SourceQuality "1"]
[TimeControl "5400+30"]

1. e4 {[%emt 0:00:15]} e5 {[%emt 0:02:00]} 2. Nf3 {[%emt 0:00:08]} Nc6 {[%emt 0:02:31]} 3. Bc4 {[%emt 0:00:08]} Bc5 {[%emt 0:02:32]} 4. d3 {[%emt 0:00:51]} Nf6 {[%emt 0:03:30]} 5. c3 {[%emt 0:00:15]} Bb6 {[%emt 0:02:29]} 6. O-O {[%emt 0:00:32]} O-O {[%emt 0:02:28]} 7. Re1 {[%emt 0:03:04]} d6 {[%emt 0:02:47]} 8. h3 Ne7 {[%emt 0:02:16]} 9. Nbd2 {[%emt 0:11:49]} Ng6 {[%emt 0:02:28]} 10. Nf1 {[%emt 0:00:23]} c6 {[%emt 0:03:04]} 11. Bb3 {[%emt 0:04:13]} h6 {[%emt 0:09:52]} 12. d4 {[%emt 0:05:25]} Qe7 {[%emt 0:04:34]} 13. Ng3 Re8 14. Nf5 {[%emt 0:16:37]} Qf8 {[%emt 0:11:36]} 15. dxe5 dxe5 {[%emt 0:07:18]} 16. Qd6 {[%emt 0:15:49]} Bxf5 {[%emt 0:08:50]} 17. Qxf8+ {[%emt 0:00:16]} Nxf8 {[%emt 0:00:22]} 18. exf5 {[%emt 0:00:07]} e4 {[%emt 0:01:31]} 19. Nd2 {[%emt 0:05:01]} Bc5 {[%emt 0:04:35]} 20. Nc4 {[%emt 0:02:15]} Rad8 {[%emt 0:04:54]} 21. Bf4 {[%emt 0:01:53]} Nd5 {[%emt 0:02:32]} 22. Bg3 {[%emt 0:07:07]} e3 {[%emt 0:05:31]} 23. Rad1 {[%emt 0:00:48]} exf2+ {[%emt 0:00:39]} 24. Bxf2 {[%emt 0:00:08]} Bxf2+ {[%emt 0:00:32]} 25. Kxf2 {[%emt 0:00:02]} Rxe1 {[%emt 0:01:30]} 26. Rxe1 {[%emt 0:00:13]} Nd7 {[%emt 0:02:05]} 27. Kf3 {[%emt 0:02:08]} Nc5 28. Bc2 {[%emt 0:00:34]} Kf8 {[%emt 0:01:48]} 29. a3 {[%emt 0:10:09]} Nb6 {[%emt 0:02:23]} 30. Na5 {[%emt 0:03:36]} Rd2 {[%emt 0:01:37]} 31. Re2 {[%emt 0:00:04]} Rxe2 {[%emt 0:00:38]} 32. Kxe2 {[%emt 0:00:02]} Nca4 {[%emt 0:00:46]} 33. Bxa4 {[%emt 0:07:11]} Nxa4 {[%emt 0:00:06]} 34. Nxb7 {[%emt 0:00:05]} Ke7 {[%emt 0:02:15]} 35. Na5 {[%emt 0:00:09]} Kd6 {[%emt 0:00:15]} 36. b4 {[%emt 0:03:11]} Nxc3+ {[%emt 0:00:08]} 1/2-1/2

[Event "Hungary Olimpic Hopes 2022"]
[Site "Tapolca"]
[Date "2022.06.23"]
[Round "2.5"]
[White "Karacsonyi, Luca"]
[Black "Eros, Vivien"]
[Result "1/2-1/2"]
[ECO "C02"]
[WhiteElo "1834"]
[BlackElo "1592"]
[Annotator "NA"]
[PlyCount "78"]
[EventDate "2022.06.23"]
[EventType "swiss"]
[EventCountry "HUN"]
[SourceTitle "playchess.com"]
[Source "ChessBase"]
[SourceQuality "1"]
[TimeControl "5400+30"]

1. e4 {[%emt 0:00:03]} e6 {[%emt 0:00:02]} 2. d4 {[%emt 0:00:06]} d5 {[%emt 0:00:02]} 3. e5 {[%emt 0:00:09]} c5 {[%emt 0:00:04]} 4. c3 {[%emt 0:00:06]} Nc6 {[%emt 0:00:03]} 5. Nf3 {[%emt 0:00:08]} Qb6 {[%emt 0:00:07]} 6. a3 {[%emt 0:00:06]} a5 {[%emt 0:00:05]} 7. Bd3 {[%emt 0:00:05]} Bd7 {[%emt 0:00:05]} 8. Bc2 {[%emt 0:00:09]} cxd4 {[%emt 0:00:17]} 9. cxd4 {[%emt 0:00:19]} Nge7 {[%emt 0:00:19]} 10. O-O {[%emt 0:00:37]} Ng6 {[%emt 0:00:06]} 11. Nc3 {[%emt 0:01:51]} Be7 {[%emt 0:00:22]} 12. Rb1 {[%emt 0:04:23]} O-O {[%emt 0:01:12]} 13. Be3 {[%emt 0:03:00]} Rac8 {[%emt 0:04:49]} 14. Qe2 {[%emt 0:11:17]} Qa7 15. Rfd1 Qb8 {[%emt 0:33:39]} 16. Rbc1 {[%emt 0:04:06]} Na7 17. h4 {[%emt 0:09:27]} Rfd8 {[%emt 0:12:56]} 18. Bg5 {[%emt 0:16:32]} Nc6 {[%emt 0:06:46]} 19. Bxe7 {[%emt 0:05:36]} Ncxe7 {[%emt 0:00:37]} 20. g3 {[%emt 0:03:19]} b5 {[%emt 0:04:05]} 21. Bd3 {[%emt 0:04:30]} b4 {[%emt 0:00:46]} 22. Nb5 {[%emt 0:01:03]} Bxb5 {[%emt 0:00:34]} 23. Bxb5 {[%emt 0:00:07]} bxa3 {[%emt 0:01:49]} 24. bxa3 {[%emt 0:00:09]} Rxc1 {[%emt 0:01:30]} 25. Rxc1 {[%emt 0:00:08]} Rc8 {[%emt 0:00:06]} 26. Rxc8+ {[%emt 0:01:54]} Qxc8 {[%emt 0:00:05]} 27. Qd2 {[%emt 0:00:58]} Qc7 {[%emt 0:00:34]} 28. a4 {[%emt 0:04:01]} Nc8 {[%emt 0:04:04]} 29. Bd3 {[%emt 0:04:13]} Nge7 {[%emt 0:04:37]} 30. Qb2 {[%emt 0:02:54]} g6 {[%emt 0:08:47]} 31. Kg2 {[%emt 0:02:03]} Nc6 {[%emt 0:03:08]} 32. Qc3 {[%emt 0:05:02]} Qb6 {[%emt 0:06:16]} 33. Be2 {[%emt 0:04:22]} N8e7 {[%emt 0:01:00]} 34. g4 {[%emt 0:01:47]} Qb4 {[%emt 0:01:07]} 35. Qa1 {[%emt 0:03:58]} Nc8 {[%emt 0:04:25]} 36. Bb5 {[%emt 0:01:19]} N6a7 {[%emt 0:00:43]} 37. Bd3 {[%emt 0:01:44]} Nb6 38. Bc2 Nc6 39. Bd3 Na7 1/2-1/2

[Event "Hungary Olimpic Hopes 2022"]
[Site "Tapolca"]
[Date "2022.06.23"]
[Round "2.6"]
[White "Beznicza, Mira"]
[Black "Szarvas, Nora Orsolya"]
[Result "1/2-1/2"]
[ECO "B26"]
[WhiteElo "1635"]
[BlackElo "1669"]
[Annotator "NA RC"]
[PlyCount "61"]
[EventDate "2022.06.23"]
[EventType "swiss"]
[EventCountry "HUN"]
[SourceTitle "playchess.com"]
[Source "ChessBase"]
[SourceQuality "1"]
[TimeControl "5400+30"]

1. e4 {[%emt 0:00:06]} c5 {[%emt 0:00:16]} 2. Nc3 {[%emt 0:00:16]} Nc6 {[%emt 0:00:09]} 3. g3 {[%emt 0:00:19]} g6 {[%emt 0:00:23]} 4. Bg2 {[%emt 0:00:19]} Bg7 {[%emt 0:00:13]} 5. d3 {[%emt 0:00:26]} d6 {[%emt 0:00:41]} 6. Be3 {[%emt 0:01:05]} Nf6 {[%emt 0:01:01]} 7. f3 {[%emt 0:03:26]} a6 {[%emt 0:00:47]} 8. Qd2 {[%emt 0:01:04]} Rb8 {[%emt 0:00:39]} 9. Nge2 {[%emt 0:01:57]} b5 {[%emt 0:00:51]} 10. Bh6 {[%emt 0:01:29]} O-O {[%emt 0:00:18]} 11. h4 {[%emt 0:07:59]} d5 {[%emt 0:13:40]} 12. h5 e6 {[%emt 0:00:25]} 13. hxg6 {[%emt 0:04:15]} fxg6 14. Bxg7 {[%emt 0:01:50]} Kxg7 {[%emt 0:00:39]} 15. Qh6+ {[%emt 0:00:10]} Kg8 {[%emt 0:00:13]} 16. g4 {[%emt 0:02:02]} Qd7 {[%emt 0:02:37]} 17. Nf4 d4 {[%emt 0:00:25]} 18. Nce2 {[%emt 0:16:36]} e5 19. g5 exf4 {[%emt 0:02:51]} 20. gxf6 {[%emt 0:07:17]} Rxf6 {[%emt 0:00:51]} 21. Nxf4 {[%emt 0:00:46]} Qg7 {[%emt 0:01:05]} 22. Nd5 Rf7 23. Kd2 {[%emt 0:10:19]} Qxh6+ {[%emt 0:01:23]} 24. Rxh6 {[%emt 0:00:13]} Be6 25. Bh3 {[%emt 0:02:03]} Bxd5 {[%emt 0:01:35]} 26. exd5 {[%emt 0:00:16]} Nd8 {[%emt 0:00:42]} 27. Bg4 Rb6 28. Re1 {[%emt 0:06:02]} Kf8 {[%emt 0:01:00]} 29. Reh1 {[%emt 0:01:11]} Kg8 {[%emt 0:01:24]} 30. Re1 Kf8 {[%emt 0:00:17]} 31. Reh1 {[%emt 0:00:47]} 1/2-1/2